Cogmind - Beta 13 X1 @@@ ROGUE MODE // 2023.06.27 @ 06:55:47 Player: maxwell Result: Self-destructed Performance ------------- Evolutions (1) 500 Regions Visited (3) 600 Robots Destroyed (17) 85 Value Destroyed (185) 185 Prototype IDs (0) 0 Alien Tech Used (0) 0 Bonus (0) 0 TOTAL SCORE: 1370 Bonus ------- None Cogmind --------- Core Integrity 400/400 Matter 110/300 Energy 250/250 System Corruption 0% Temperature Cool (0) Movement Walking (190) Ox1 Location -9/Materials Parts ------- > --- POWER (1) -------- Ion Engine > --- PROPULSION (2) --- Aluminum Leg Aluminum Leg > --- UTILITY (4) ------ Large Storage Unit Utility Shielding > --- WEAPON (2) ------- Medium Laser Grenade Launcher > --- INVENTORY (15) --- Ion Engine Light Treads Light Treads Wheel Compact Wheel High-capacity Matter Pod (0) Decoy Drone Bay Small Laser Small Laser Grenade Launcher Peak State ------------ > --- POWER ------------ Ion Engine > --- PROPULSION ------- Aluminum Leg Aluminum Leg > --- UTILITY ---------- Large Storage Unit Utility Shielding > --- WEAPON ----------- Medium Laser Grenade Launcher > --- INVENTORY -------- Ion Engine Light Treads Light Treads Wheel Compact Wheel High-capacity Matter Pod Decoy Drone Bay Small Laser Small Laser Grenade Launcher [Rating: 9] Favorites ----------- Power Ion Engine Engine Ion Engine Propulsion Aluminum Leg Leg Aluminum Leg Utility Large Storage Unit Storage Large Storage Unit Protection Utility Shielding Weapon Medium Laser Energy Gun Medium Laser Launcher Grenade Launcher Build | -11 -10 -10 -9 ------- Run | Jun Mat Min Mat Slots Evolved 2 | . . . 2 Power . | . . . . Propulsion . | . . . . Utility 2 | . . . 2 Weapon . | . . . . Parts Attached 4 | . 4 . . Power . | . . . . Engine . | . . . . Core . | . . . . Reactor . | . . . . Propulsion . | . . . . Treads . | . . . . Leg . | . . . . Wheel . | . . . . Hover . | . . . . Flight . | . . . . Utility 3 | . 3 . . Device . | . . . . Storage 2 | . 2 . . Processor . | . . . . Hackware . | . . . . Protection 1 | . 1 . . Artifact . | . . . . Weapon 1 | . 1 . . Energy Gun . | . . . . Energy Cannon . | . . . . Ballistic Gun . | . . . . Ballistic Cannon . | . . . . Launcher 1 | . 1 . . Special Weapon . | . . . . Impact Weapon . | . . . . Slashing Weapon . | . . . . Piercing Weapon . | . . . . Special Melee Weapon . | . . . . Unidentified Prototypes . | . . . . Parts Lost . | . . . . Power . | . . . . Propulsion . | . . . . Utility . | . . . . Weapon . | . . . . Highest Loss Streak . | . . . . To Critical Strikes . | . . . . Average Slot Usage (%) 96 | . 94 100 . Engine 14 | . 14 14 . Leg 28 | . 28 28 . Storage 17 | . 18 14 . Protection 7 | . 4 14 . Energy Gun 14 | . 14 14 . Launcher 13 | . 13 14 . Naked Turns . | . . . . Heaviest Build 34 | 13 34 31 . Greatest Support 20 | 20 20 20 . Greatest Overweight (x) 1 | . 1 1 . Average Overweight (x) . | . . 1 . Largest Inventory Capacity 15 | . 15 15 . Average Capacity 13 | . 11 15 . Most Carried 11 | . 9 11 . Average Carried 8 | . 7 10 . Final Capacity 15 | 8 15 15 15 Final Carried 11 | 6 9 11 11 Class Distribution -------------------- 100% | Mutant Dominant Class ---------------- Mutant | -10/Materials Mutant | -10/Mines Mutant | -9/Materials Resources | -11 -10 -10 -9 ----------- Run | Jun Mat Min Mat Matter Collected 250 | 200 17 33 . Remotely . | . . . . Salvage Created 116 | . 83 33 . Parts 24 | . 19 5 . Haulers Intercepted . | . . . . Recyclers Shooed . | . . . . Parts Field Recycled . | . . . . Retrieved Matter . | . . . . Parts Self-Destructed . | . . . . Prevented . | . . . . Kills | -11 -10 -10 -9 ------- Run | Jun Mat Min Mat Combat Hostiles Destroyed 12 | . 9 3 . AOE 12 | . 9 3 . Classes Destroyed 6 | . 6 . . Worker 2 | . 2 . . Tunneler 1 | . 1 . . Operator 1 | . 1 . . Watcher 1 | . 1 . . Swarmer 11 | . 8 3 . Grunt 1 | . 1 . . Best Kill Streak 6 | . 6 3 . Combat Bots Only 3 | . 3 3 . Max Kills in Single Turn 3 | . 2 3 . Gunslinging . | . . . . Exploded 3 | . 2 3 . Melee . | . . . . Uniques/NPCs Destroyed . | . . . . Combat | -11 -10 -10 -9 -------- Run | Jun Mat Min Mat Damage Taken 177 | . 161 16 . Core 23 | . 23 . . Absorbed by Shields . | . . . . Core Remaining (%) 95 | 100 . 90 . Volleys Fired 20 | . 19 1 . Largest 1 | . 1 1 . Hottest 30 | . 30 30 . Shots Fired 20 | . 19 1 . Gun . | . . . . Cannon . | . . . . Launcher 20 | . 19 1 . Special . | . . . . Kinetic . | . . . . Thermal . | . . . . Explosive 20 | . 19 1 . Electromagnetic . | . . . . Robot Hit Streak 1 | . 1 . . Robot Miss Streak . | . . . . Penetration Max . | . . . . Secondary Targets . | . . . . Shots Hit Robots 1 | . 1 . . Core Hits 31 | . 29 2 . Critical Kills . | . . . . Critical Parts Destroyed . | . . . . Critical Strikes . | . . . . Melee Attacks . | . . . . Impact . | . . . . Slashing . | . . . . Piercing . | . . . . Sneak Attacks . | . . . . Combat Hostiles . | . . . . Follow-up Attacks . | . . . . Damage Inflicted 957 | . 832 125 . Guns . | . . . . Cannons . | . . . . Explosions 957 | . 832 125 . Melee . | . . . . Ramming . | . . . . Kinetic . | . . . . Thermal . | . . . . Explosive 957 | . 832 125 . Electromagnetic . | . . . . Impact . | . . . . Slashing . | . . . . Piercing . | . . . . Highest Corruption . | . . . . Average Corruption . | . . . . Corruption Purged . | . . . . Corruption Blocked . | . . . . Overload Shots . | . . . . Overflow Damage 63 | . 46 17 . Projectiles . | . . . . Explosions 63 | . 46 17 . Melee . | . . . . Knockbacks . | . . . . Impact . | . . . . Kinetic . | . . . . Secondary . | . . . . Self-Inflicted Damage 32 | . 32 . . Shots 2 | . 2 . . Rammed . | . . . . Targets Rammed . | . . . . Kicked . | . . . . Crushed . | . . . . Highest Temperature 1 | . 1 . . Average Temperature 1 | . 1 . . Received Heat Transfer 6 | . 6 . . Siege Activations . | . . . . Robots Corrupted . | . . . . Combat Hostiles . | . . . . Parts Fried . | . . . . Impact Corruptions . | . . . . Robots Melted . | . . . . Combat Hostiles . | . . . . Parts Melted . | . . . . Heat Transferred . | . . . . Parts Sabotaged . | . . . . Parts Stolen . | . . . . Parts Stripped . | . . . . Power Chain Reactions . | . . . . Missiles Intercepted . | . . . . Alert | -11 -10 -10 -9 ------- Run | Jun Mat Min Mat Peak Influence 352 | . 352 139 . Initial 61 | . . 61 53 Average 159 | . 191 104 . Maximum Alert Level 1 | . 1 . . Low Security (%) 81 | . 71 100 . Level 1 18 | . 28 . . Level 2 . | . . . . Level 3 . | . . . . Level 4 . | . . . . Level 5 . | . . . . High Security . | . . . . Max Security . | . . . . Squads Dispatched . | . . . . Investigation . | . . . . Extermination . | . . . . Reinforcement . | . . . . Assault . | . . . . Garrison . | . . . . Intercept . | . . . . Searches Triggered . | . . . . Construction Impeded . | . . . . Haulers Reinforced . | . . . . Active Scanning Responses . | . . . . Cargo Convoy Interrupts . | . . . . Stealth | -11 -10 -10 -9 --------- Run | Jun Mat Min Mat Distress Signals 1 | . 1 . . Communications Jammed . | . . . . Distress Signals . | . . . . Times Spotted 19 | . 16 3 . Peak Tracking Total 5 | . 5 3 . Tactical Retreats . | . . . . Traps | -11 -10 -10 -9 ------- Run | Jun Mat Min Mat Traps Triggered . | . . . . Indirectly . | . . . . Trap Hack Attempts . | . . . . Triggered . | . . . . Disarmed . | . . . . Reprogrammed . | . . . . Reused . | . . . . Traps Extracted . | . . . . Installed . | . . . . Triggered . | . . . . Machines | -11 -10 -10 -9 ---------- Run | Jun Mat Min Mat Machines Disabled . | . . . . Max in Single Turn . | . . . . Machines Repaired . | . . . . Machines Sabotaged . | . . . . Overloaded Fab Kills . | . . . . Hacking | -11 -10 -10 -9 --------- Run | Jun Mat Min Mat Machines Accessed 4 | . 3 1 . Terminals 3 | . 3 . . Fabricators . | . . . . Repair Stations . | . . . . Recycling Units . | . . . . Scanalyzers . | . . . . Garrison Access . | . . . . Total Hacks 13 | . 12 1 . Successful 6 | . 5 1 . Failed 7 | . 7 . . Catastrophic 1 | . 1 . . Database Lockouts . | . . . . Manual 15 | . 15 . . Terminals 12 | . 12 . . Fabricators . | . . . . Repair Stations . | . . . . Recycling Units . | . . . . Scanalyzers . | . . . . Garrison Access . | . . . . Terminal Hacks 2 | . 1 1 . Open Door 1 | . . 1 . Terminal Index 1 | . 1 . . Fabricator Hacks . | . . . . Repair Station Hacks . | . . . . Recycling Unit Hacks . | . . . . Scanalyzer . | . . . . Garrison Access Hacks . | . . . . Unauthorized Hacks 4 | . 4 . . Terminals 4 | . 4 . . Botnet 3 | . 3 . . Operators 1 | . 1 . . Fabricators . | . . . . Repair Stations . | . . . . Recycling Units . | . . . . Scanalyzers . | . . . . Garrison Access . | . . . . Data Cores Recovered . | . . . . Used . | . . . . Hacking Detections 3 | . 3 . . Full Trace Events . | . . . . Feedback Events . | . . . . Feedback Blocked . | . . . . Robot Schematics Acquired . | . . . . Robots Built . | . . . . Authchips . | . . . . Time . | . . . . Total Robot Build Rating . | . . . . Part Schematics Acquired . | . . . . Parts Built . | . . . . Authchips . | . . . . Time . | . . . . Total Part Build Rating . | . . . . Parts Repaired . | . . . . Time . | . . . . Parts Recycled . | . . . . Recycled Matter . | . . . . Retrieved Matter . | . . . . Retrieved Components . | . . . . Parts Scanalyzed . | . . . . Part Schematics Acquired . | . . . . Parts Damaged . | . . . . Bothacking | -11 -10 -10 -9 ------------ Run | Jun Mat Min Mat Used RIF Installer . | . . . . Robots Hacked . | . . . . Non-combat . | . . . . Combat . | . . . . Robot Hacks Applied . | . . . . Relay Couplers Released . | . . . . Fabnet Peak Effective % . | . . . . Robots Rewired . | . . . . Allies Hacked . | . . . . Hacks Repelled . | . . . . Allies | -11 -10 -10 -9 -------- Run | Jun Mat Min Mat Total Allies . | . . . . Largest Group . | . . . . Highest-Rated Group . | . . . . Highest-Rated Ally . | . . . . Total Orders . | . . . . Ally Attacks . | . . . . Total Damage . | . . . . Kills . | . . . . Allies Corrupted . | . . . . Allies Melted . | . . . . Intel | -11 -10 -10 -9 ------- Run | Jun Mat Min Mat Robot Analysis Total . | . . . . Derelict Logs Recovered . | . . . . Drone Launches . | . . . . Drone Recoveries . | . . . . Exploration | -11 -10 -10 -9 ------------- Run | Jun Mat Min Mat Turns Passed 1057 | . 664 393 . Spaces Moved 608 | 1 401 206 . Core . | . . . . Treads . | . . . . Legs 608 | 1 401 206 . Wheels . | . . . . Hover . | . . . . Flight . | . . . . Fastest Speed 120 | 120 120 190 . Average Speed 165 | 120 152 190 . Slowest Speed 190 | 120 190 190 . Overloaded Moves . | . . . . Propulsion Burnouts . | . . . . Robots Hopped . | . . . . Cave-ins Triggered . | . . . . Exploration Rate (%) 33 | 2 88 44 1 Regions Visited 3 Branch Regions 1 Pre-discovered Areas . | . . . . Known Exits Taken . | . . . . Unknown Exits Taken 3 | 1 1 1 . Scrap Searched . | . . . . Spaces Dug 29 | . 21 8 . Terrain Destroyed 83 | . 75 8 . Melee . | . . . . Projectile . | . . . . AOE 83 | . 75 8 . Terrain Rammed . | . . . . Walls Destroyed . | . . . . Machines Disabled . | . . . . Actions | -11 -10 -10 -9 --------- Run | Jun Mat Min Mat Total 640 | . 433 207 . Wait 5 | . 5 . . Move 605 | . 400 205 . Hop . | . . . . Pick Up 5 | . 4 1 . Fast Attach . | . . . . Attach 1 | . 1 . . Detach . | . . . . Swap 3 | . 3 . . Drop 1 | . 1 . . Fire 20 | . 19 1 . Melee . | . . . . Ram . | . . . . Kick . | . . . . Crush . | . . . . Escape Stasis . | . . . . Rewire . | . . . . Trap . | . . . . Miscellaneous . | . . . . Route ------- -11/Junkyard -10/Materials (discovered 5 exits: [*Mat x3] / *Min x2) -10/Mines -9/Materials History --------- Turn | Location | Event 1 | -11/Junkyard | Discovered new exit (range 0) 1 | -11/Junkyard | Entered Materials 54 | -10/Materials | Discovered new exit (range 10) 176 | -10/Materials | Discovered new exit (range 12) 211 | -10/Materials | Discovered new exit (range 11) 310 | -10/Materials | Discovered new exit (range 10) 329 | -10/Materials | Build established: Mutant 592 | -10/Materials | Discovered new exit (range 11) 665 | -10/Materials | Entered Mines 682 | -10/Mines | Found the Drone Emporium 692 | -10/Mines | Found Prototype Device 900 | -10/Mines | Discovered new exit (range 4) 1058 | -10/Mines | Entered Materials 1058 | -9/Materials | Evolved 2 slots: Utility x2 1058 | -9/Materials | Self-destructed Last Messages --------------- >>Open Door Sealed Doors opened. 00682_ O6-QT4(g): "Well that was anticlimactic. Heard you outside and thought you were from the Merchants Guild. I haven't even officially opened my Drone Emporium yet but am totally ready to tell them where they can shove that C&D." 00684_ O6-QT4(g): "I'm a fan of the free market. Free drones for all! No strings attached!" 00692_ Acquired Prototype Device. 00817_ K-01 Serf collects debris. 00837_ S-10 Pest destroyed. 00837_ Destroyed Flight Unit. 00837_ S-10 Pest destroyed. 00841_ Acquired 12 matter. 00843_ Acquired 10 matter. 00849_ Acquired 11 matter. 00900_ EXIT=FOUND PARAMETERS=UTILITY+2 LOCATION=UNKNOWN GOAL=ESCAPE Map ----- +----------------------------------------------------+ | ?????????????????????????????????????????????????? | | ?????????????????????????????????????????????????? | | ?????????????????????????????????????????????????? | | ?????????????????????????????????????????????????? | | ?????????????????????????????????????????????????? | | ?????????????????????????????????????????????????? | | ?????????????????????????????????????????????????? | | ?????????????????????????????????????????????????? | | ?????????????????????????????????????????????????? | | ?????????????????????????????????????????????????? | | ??????????????????????? ?????????????????????????? | | ????????????????????? ?????????????????????????? | | ???????????????????? #####????????????????????? | | ???????????????????? ????????????????????? | | ????????????????????? #????????????????????? | | ????????????????????? #????????????????????? | | ????????????????????? #????????????????????? | | ?????????????????????? #????????????????????? | | ?????????????????????? #????????????????????? | | ??????????????????????# #????????????????????? | | ??????????????????????# #????????????????????? | | ??????????????????????# #????????????????????? | | ??????????????????????# #????????????????????? | | ??????????????????????# #????????????????????? | | ??????????????????????# #????????????????????? | | ??????????????????????# @ #????????????????????? | | ??????????????????????# #????????????????????? | | ??????????????????????#######????????????????????? | | ?????????????????????????????????????????????????? | | ?????????????????????????????????????????????????? | | ?????????????????????????????????????????????????? | | ?????????????????????????????????????????????????? | | ?????????????????????????????????????????????????? | | ?????????????????????????????????????????????????? | | ?????????????????????????????????????????????????? | | ?????????????????????????????????????????????????? | | ?????????????????????????????????????????????????? | | ?????????????????????????????????????????????????? | | | | | | | | | | | | | | | | | | | | | | | | | +----------------------------------------------------+ Best States ------------- Heat Dissipation 25 Energy Generation 10 Energy Capacity 250 Matter Stores 300 Matter Capacity 500 Sight Range 16 Terrain Scan Density 10 Utility Shielding 33 Evasion (%) 55 Item Schematics ----------------- None Robot Schematics ------------------ None Fabricated ------------ Nothing Alien Tech Used ----------------- None Achievements -------------- None Challenges ------------ None Game ------ Seed BottomlessFocalSystem Manual? 0 Play Time 00:03:23 Cumulative 369.0 hours Start 2023.06.27 @ 06:52:26 End 2023.06.27 @ 06:55:47 Sessions 1 Manual Loads 0 Difficulty Rogue Special Mode None Game No. 536 Rogue 509 Adventurer 4 Explorer 23 Win Type - Total 20 Types 14/0/2/2/1/0/0/1/0 Lore% 79 Gallery% 91 Achievement% 83 Wizard Run 0 Options --------- ASCII 0 Keyboard 1 Movement Numpad Keybinds 0 Fullscreen 1 Font 18/SmallcapsGlow Map View 76x50 Tactical HUD 1 Map Filters NONE Filters NONE Steam 1 RUN: daec5f09-a688-406e-9732-749dd2667d46